[Event "NY Presidents Day IM-B 2024"]
[Site "New York"]
[Date "2024.02.18"]
[Round "6.4"]
[White "Jimenez Fraga, Pedro Alejandro"]
[Black "Tanenbaum, Zachary"]
[Result "0-1"]
[ECO "C45"]
[WhiteElo "2447"]
[BlackElo "2272"]
[Annotator "TA"]
[PlyCount "102"]
[EventDate "2024.02.14"]
[EventType "schev"]
[EventCountry "USA"]
[SourceTitle "playchess.com"]
[Source "ChessBase"]
[SourceQuality "1"]
[TimeControl "5400+30"]

{[%evp 22,102,14,8,15,7,-7,-10,11,0,0,-15,-16,-11,-10,-12,-7,0,0,-25,-25,-23,-22,-18,0,-10,0,0,-11,-11,-6,-8,-11,-31,-20,-22,0,0,0,0,0,0,0,0,0,0,0,0,0,0,0,0,0,0,0,0,0,0,0,0,0,5,8,0,0,0,6,0,0,0,0,0,0,0,0,0,0,-425,-407,-458,-444,-393,-370]} 1. e4 {[%emt 0:00:03]} e5 {[%emt 0:36:58]} 2. Nf3 {[%emt 0:00:08]} Nc6 {[%emt 0:00:15]} 3. d4 {[%emt 0:00:10]} exd4 {[%emt 0:00:13]} 4. Nxd4 {[%emt 0:00:06]} Bc5 {[%emt 0:00:05]} 5. Be3 {[%emt 0:00:15]} Qf6 {[%emt 0:00:07]} 6. c3 {[%emt 0:00:07]} Nge7 {[%emt 0:00:07]} 7. Bc4 {[%emt 0:00:32]} Ne5 {[%emt 0:00:14]} 8. Be2 {[%emt 0:00:07]} Qg6 {[%emt 0:00:15]} 9. O-O {[%emt 0:00:12]} d6 {[%emt 0:00:11][%cal Bd7d6,Bd6d5][%mdl 32]} 10. f3 {[%emt 0:02:16]} d5 {[%emt 0:00:08]} 11. Nd2 {[%emt 0:01:50]} O-O {[%emt 0:00:12]} 12. Kh1 {[%emt 0:01:23]} N5c6 {[%emt 0:00:06]} 13. Qe1 {[%emt 0:25:09]} Bb6 {[%emt 0:11:31]} 14. Qf2 {[%emt 0:02:33]} Bd7 {[%emt 0:10:20] The position is equal.} 15. c4 {[%emt 0:19:37]} Nxd4 {[%emt 0:07:31]} 16. Bxd4 {[%emt 0:00:13]} Bxd4 {[%emt 0:00:57]} 17. Qxd4 {[%emt 0:00:04]} Nc6 {[%emt 0:00:23]} 18. Qf2 {[%emt 0:02:33]} (18. Qxd5 Rfd8 19. Qc5 Bh3 20. gxh3 Rxd2 $17) 18... dxe4 {[%emt 0:01:45]} 19. Nxe4 {[%emt 0:00:05][%cal Bd2e4,Be4c5,Bc5a6][%mdl 32]} Bf5 {[%emt 0:01:23]} 20. Nc5 {[%emt 0:05:24][%cal Oa1d1]} Rad8 {[%emt 0:03:45]} 21. Rfd1 {[%emt 0:00:47] Wards off Rd2} Qf6 {[%emt 0:06:11]} 22. Bf1 {[%emt 0:00:12]} b6 {[%emt 0:03:39]} 23. Na6 {[%emt 0:01:02] White is weak on the dark squares} Qe5 {[%emt 0:06:20]} 24. Re1 {[%emt 0:02:03][%cal Bd1e1,Be1e7,Be7c7][%mdl 32]} Qd4 {[%emt 0:01:00]} 25. Qxd4 {[%emt 0:07:13]} Nxd4 {[%emt 0:00:03]} 26. Re7 {[%emt 0:00:11]} (26. Nxc7 $2 {too greedy.} Nc2 27. Nd5 Nxe1 28. Rxe1 Be6 29. Ne7+ Kh8 $19) 26... c5 {[%emt 0:02:03]} 27. Rae1 {[%emt 0:11:56]} Nc6 {[%emt 0:01:09]} 28. Rc7 {[%emt 0:05:01]} Rd6 {[%emt 0:01:40]} 29. a3 {[%emt 0:00:16]} Bc8 {[%emt 0:03:20]} 30. b4 $1 {[%emt 0:00:11]} Bxa6 {[%emt 0:01:10]} 31. b5 {[%emt 0:00:01]} Bxb5 {[%emt 0:00:30]} 32. cxb5 {[%emt 0:00:06]} Na5 {[%emt 0:00:27]} 33. Ree7 {[%emt 0:02:32]} g6 {[%emt 0:01:54]} (33... Rd1 $5 34. Kg1 $8 c4 $11) 34. Kg1 {[%emt 0:00:22]} Rf6 {[%emt 0:00:35]} 35. Red7 {[%emt 0:04:10]} Re8 {[%emt 0:00:24]} 36. Kf2 {[%emt 0:00:11] Inhibits Re3.} Kg7 {[%emt 0:00:57]} 37. Rxa7 {[%emt 0:04:14]} Ree6 {[%emt 0:00:15]} 38. Bd3 {[%emt 0:01:09]} Rd6 {[%emt 0:00:21]} 39. Be4 {[%emt 0:00:41]} Rxd7 {[%emt 0:00:49]} 40. Rxd7 $11 {[%emt 0:00:01][%mdl 4096] Endgame. KRB-KRN} Nc4 {[%emt 0:00:10]} 41. a4 {[%emt 0:02:36]} Kf8 {[%emt 0:00:50]} 42. h4 {[%emt 0:01:28]} h5 {[%emt 0:00:31]} 43. Kg3 {[%emt 0:00:40]} Ke8 {[%emt 0:00:40]} 44. Rb7 {[%emt 0:00:21]} Na5 {[%emt 0:00:29]} 45. Ra7 {[%emt 0:00:29]} Rd6 {[%emt 0:00:26]} 46. Kf4 {[%emt 0:00:18]} Kf8 {[%emt 0:00:38]} 47. g4 {[%emt 0:00:08]} hxg4 {[%emt 0:00:10]} 48. fxg4 {[%emt 0:00:01]} Rd4 {[%emt 0:00:14][%cal Oa5c4]} 49. Ke5 $2 {[%emt 0:02:17][%mdl 8192]} (49. h5 $11 {and White stays safe.}) 49... Nc4+ $19 {[%emt 0:00:35]} 50. Kf6 {[%emt 0:00:47] [#] White threatens Ra8+ and mate.} Rxe4 {[%emt 0:00:26]} 51. Rxf7+ {[%emt 0:00:26]} Ke8 {[%emt 0:00:09] Weighted Error Value: White=0.24 (precise) /Black=0.02 (flawless) .  Loses game:     	White=1     	---        OK:         	White=17    	Black=17     Best:        	White=2     	Black=3      Strong:       	White=1     	---} 0-1

[Event "NY Presidents Day IM-B 2024"]
[Site "New York"]
[Date "2024.02.18"]
[Round "6.5"]
[White "Bortnyk, Mykola"]
[Black "Pang, Qi"]
[Result "1-0"]
[ECO "C77"]
[WhiteElo "2421"]
[BlackElo "2148"]
[Annotator "TA"]
[PlyCount "121"]
[EventDate "2024.02.14"]
[EventType "schev"]
[EventCountry "USA"]
[SourceTitle "playchess.com"]
[Source "ChessBase"]
[SourceQuality "1"]
[TimeControl "5400+30"]

{[%evp 18,121,17,16,45,31,35,39,35,35,47,38,37,39,33,0,4,0,8,9,18,7,7,0,0,0,62,56,54,54,51,16,9,14,35,14,63,85,72,76,100,89,135,81,84,79,98,94,135,66,143,102,86,0,126,82,94,93,102,0,100,102,143,100,197,204,164,114,185,69,305,194,335,362,365,364,323,343,351,348,324,333,368,66,342,38,537,524,505,502,29976,29976,29980,7845,29984,29985,29985,29980,29980,29981,29990,29991,29992,29992,29996,29990]} 1. e4 {[%emt 0:18:15]} e5 {[%emt 0:00:08]} 2. Nf3 {[%emt 0:00:43]} Nc6 {[%emt 0:00:08]} 3. Bb5 {[%emt 0:00:08]} a6 {[%emt 0:00:04]} 4. Ba4 {[%emt 0:00:07]} Nf6 {[%emt 0:00:07]} 5. d3 {[%emt 0:00:20]} d6 {[%emt 1:32:33]} 6. c4 {[%emt 0:00:12]} Be7 {[%emt 0:00:00]} 7. h3 {[%emt 0:00:52]} O-O {[%emt 0:00:00]} 8. Be3 {[%emt 0:01:03]} Bd7 {[%emt 0:00:00]} 9. Nc3 {[%emt 0:00:39]} Re8 {[%emt 0:00:00]} 10. O-O {[%emt 0:01:54]} Bf8 {[%emt 0:00:00]} 11. Rc1 {[%emt 0:03:07]} Rc8 {[%emt 0:00:00]} 12. Re1 {[%emt 0:05:53]} h6 {[%emt 0:00:00]} 13. a3 {[%emt 0:10:46]} Nb8 {[%emt 0:00:00]} 14. b4 {[%emt 0:08:38]} Bxa4 {[%emt 0:00:00]} 15. Qxa4 {[%emt 0:00:11]} c6 {[%emt 0:00:00]} 16. d4 {[%emt 0:01:20]} exd4 {[%emt 0:00:00]} 17. Bxd4 {[%emt 0:00:51]} Nbd7 {[%emt 0:00:00]} 18. Rcd1 {[%emt 0:04:59]} Qc7 {[%emt 0:00:00]} 19. Qc2 {[%emt 0:00:13]} b5 {[%emt 0:00:00]} 20. Qb3 {[%emt 0:03:24]} bxc4 {[%emt 0:00:00]} 21. Qxc4 {[%emt 0:00:16]} Nxe4 {[%emt 0:00:00]} ({Better is} 21... a5 $11) 22. Rxe4 $14 {[%emt 0:05:56]} Rxe4 {[%emt 0:00:00]} 23. Nxe4 {[%emt 0:00:10]} d5 {[%emt 0:00:00]} 24. Nf6+ {[%emt 0:00:52]} (24. Qxa6 $5 dxe4 25. Nd2 $11) 24... Nxf6 {[%emt 0:00:00]} 25. Qxa6 {[%emt 0:00:02]} Nd7 {[%emt 0:00:00]} 26. Rc1 {[%emt 0:03:01]} (26. Ne5 $5) 26... Bd6 {[%emt 0:00:00]} (26... c5 $11 {feels stronger.}) 27. Be3 $14 {[%emt 0:01:04]} Nb8 {[%emt 0:00:00]} 28. Qd3 {[%emt 0:01:06]} Qd7 {[%emt 0:00:00]} 29. Bc5 {[%emt 0:02:48]} Bf4 {[%emt 0:00:00]} (29... Bxc5 $142 30. Rxc5 Re8) 30. Ra1 {[%emt 0:00:08]} ({White should try} 30. Rc2) 30... Re8 $16 {[%emt 0:00:00]} 31. a4 {[%emt 0:01:51]} Qc8 {[%emt 0:00:00]} 32. Bd4 {[%emt 0:00:29]} Bd6 {[%emt 0:00:00]} 33. Qc3 {[%emt 0:00:14]} (33. b5 $16) 33... f6 {[%emt 0:00:00]} (33... Na6 $14) 34. Bc5 {[%emt 0:00:57]} Bf4 {[%emt 0:00:52]} 35. Bd4 {[%emt 0:03:56]} Bd6 {[%emt 0:00:24]} 36. Rb1 {[%emt 0:01:55]} Qa6 {[%emt 0:00:53]} 37. Qc2 {[%emt 0:03:22]} Qe2 {[%emt 0:01:14]} 38. Qc3 {[%emt 0:01:28]} Qa6 $1 {[%emt 0:00:04]} 39. Qb3 {[%emt 0:00:34]} Qb7 {[%emt 0:00:11]} 40. b5 {[%emt 0:00:48]} Re4 {[%emt 0:00:26]} (40... Nd7 $16 {was worth a try.} 41. b6 Ra8) 41. Rc1 $18 {[%emt 0:01:01]} Kh8 {[%emt 0:01:30]} 42. Qc3 {[%emt 0:02:25]} (42. g3 $18) 42... c5 {[%emt 0:03:18] [#]} (42... cxb5 $16 {was called for.} 43. Qc8+ Qxc8 44. Rxc8+ Kh7) 43. Bxf6 {[%emt 0:00:18]} (43. Bxc5 $1 $18 {[%mdl 512]} Rc4 44. Bxd6 Rxc3 45. Rxc3) 43... Rc4 $2 {[%emt 0:00:15]} (43... d4 $1 $14 44. Nxd4 Rf4) 44. Qe3 {[%emt 0:01:36]} Rxc1+ {[%emt 0:00:12]} (44... gxf6 $142 45. Rxc4 (45. Qxh6+ Kg8 $16) 45... dxc4) 45. Qxc1 $18 {[%emt 0:00:02]} gxf6 {[%emt 0:00:06]} 46. Qxh6+ {[%emt 0:00:04]} Kg8 {[%emt 0:00:01]} 47. Qxf6 {[%emt 0:00:35]} Qe7 {[%emt 0:01:39]} 48. Qg6+ {[%emt 0:00:28]} Kf8 {[%emt 0:00:34]} 49. g3 {[%emt 0:00:17]} Nd7 {[%emt 0:00:40]} 50. a5 $2 {[%emt 0:00:29]} (50. Ng5 $18 {White wants to mate with Ne6+.} Nf6 51. b6) 50... c4 $2 {[%emt 0:01:17][%mdl 8192] [#]} (50... Qf6 $14 51. Qg4 Ke7) 51. Nd4 $2 {[%emt 0:04:02]} (51. Ng5 $1 $18 {[%cal Rg5e6] Ne6+ would kill now.} Nf6 52. b6) 51... Nf6 $2 {[%emt 0:04:37][%mdl 8192]} ({Black should play} 51... Qe1+ $14 52. Kg2 Qe4+ 53. Qxe4 dxe4) 52. b6 $18 {[%emt 0:00:06]} Bc5 {[%emt 0:01:06]} 53. b7 $1 {[%emt 0:00:09]} Bd6 {[%emt 0:03:27]} (53... Ba7 $18 54. Kg2 Qe4+ 55. Qxe4 Nxe4) 54. a6 {[%emt 0:00:08]} Bb8 {[%emt 0:00:03]} 55. Nc6 {[%emt 0:00:26]} Qe1+ {[%emt 0:00:22]} 56. Kg2 {[%emt 0:00:01]} Ne4 {[%emt 0:00:51]} 57. Qf5+ {[%emt 0:00:02]} (57. Nxb8 Qxf2+ 58. Kh1 Nxg3+ $11) 57... Kg7 {[%emt 0:00:12]} 58. Nxb8 {[%emt 0:00:36]} Nd2 {[%emt 0:00:12]} 59. Nd7 {[%emt 0:00:18]} ({Inferior is} 59. Qxd5 Qf1+ 60. Kh2 Qxf2+ 61. Kh1 (61. Qg2 $2 {leads to mate.} Nf3+ 62. Kh1 Qe1+) 61... Qe1+ (61... Qxg3 $2 62. Qd4+ Kf7 63. Qd7+ Kf8 64. Qxd2 $18) (61... Qf1+ 62. Kh2 $11) 62. Kg2 Qe2+ (62... Qf1+ 63. Kh2 $11) 63. Kh1 Qf1+ 64. Kh2 Nf3+ $11) 59... Qf1+ {[%emt 0:01:15]} 60. Kh2 {[%emt 0:00:02]} Qd1 {[%emt 0:00:19]} 61. Qg4+ {[%emt 0:00:08]} ({Weaker is} 61. b8=B Nf3+ 62. Kg2 Ne1+ 63. Kh1 Nf3+ 64. Kg2 Ne1+ 65. Kh2 Nf3+ 66. Kg2 $11) 1-0

[Event "NY Presidents Day IM-B 2024"]
[Site "New York"]
[Date "2024.02.18"]
[Round "6.6"]
[White "Lima, Darcy"]
[Black "Graif, William"]
[Result "1-0"]
[ECO "D02"]
[WhiteElo "2370"]
[BlackElo "2302"]
[Annotator "TA"]
[PlyCount "59"]
[EventDate "2024.02.14"]
[EventType "schev"]
[EventCountry "USA"]
[SourceTitle "playchess.com"]
[Source "ChessBase"]
[SourceQuality "1"]
[TimeControl "5400+30"]

{[%evp 12,59,42,30,28,33,34,44,25,28,16,25,22,20,28,17,17,14,117,121,108,105,134,129,127,117,123,130,140,140,132,120,311,307,334,341,336,324,410,425,477,469,445,468,477,467,549,546,29997,29998]} 1. Nf3 {[%emt 0:00:13]} c5 {[%emt 0:02:41]} 2. g3 {[%emt 0:00:59]} g6 {[%emt 0:01:06]} 3. c3 {[%emt 0:03:55]} Nf6 {[%emt 0:13:38]} 4. Bg2 {[%emt 0:00:29]} d5 {[%emt 0:05:29][%cal Bd7d5,Bd5c4][%mdl 32]} 5. d4 {[%emt 0:02:39][%cal Bd2d4,Bd4c5][%mdl 32]} Bg7 {[%emt 0:08:08]} 6. O-O {[%emt 0:02:24]} O-O {[%emt 0:00:20]} 7. dxc5 {[%emt 0:04:13]} a5 {[%emt 0:08:41] [#]} 8. c4 $1 {[%emt 0:07:18]} Na6 {[%emt 0:03:08][%cal Bb8a6,Ba6c5,Bc5e4][%mdl 32]} 9. Nc3 {[%emt 0:01:14]} dxc4 {[%emt 0:02:51] Weiß steht etwas besser.} 10. Qxd8 {[%emt 0:04:32]} Rxd8 {[%emt 0:00:02]} 11. Ne5 {[%emt 0:00:46][%cal Bf3e5,Be5c4,Bc4b6][%mdl 32]} Nxc5 {[%emt 0:02:47]} 12. Be3 {[%emt 0:00:07]} Nfe4 {[%emt 0:05:58]} 13. Nxe4 {[%emt 0:02:00]} Nxe4 {[%emt 0:00:28]} 14. Nxc4 {[%emt 0:00:04]} Bf5 {[%emt 0:03:06]} (14... Nd6 $11 {bleibt in der Remisbreite.} 15. Nb6 Rb8) 15. Nb6 {[%emt 0:05:54]} Ra6 {[%emt 0:13:55] [#]} 16. g4 $1 $36 {[%emt 0:20:22][%cal Bg3g4,Bg4f5][%mdl 2592] Droht stark Rad1. Weiss ist am Drücker.} Nd2 {[%emt 0:00:37]} (16... Bd4 17. Bxd4) 17. gxf5 {[%emt 0:00:32]} Nxf1 {[%emt 0:00:14]} 18. Kxf1 {[%emt 0:09:28]} Bd4 {[%emt 0:02:10]} 19. Nc4 {[%emt 0:01:38] Zielt auf Rd1 ab.} (19. Bxb7 $2 {zu gefräßig.} Rxb6 20. Rd1 Rxb2 $19 (20... Rxb7 $2 21. Rxd4 Rxd4 22. Bxd4 $19)) 19... Bxe3 {[%emt 0:05:54]} 20. Nxe3 {[%emt 0:00:34]} gxf5 {[%emt 0:02:53]} 21. Nxf5 {[%emt 0:00:25]} Rd2 $2 {[%emt 0:02:46] Das kostet Schwarz die Partie.} (21... e6 $16 {war nötig.}) 22. Rc1 $18 {[%emt 0:06:40]} ({Finger weg von} 22. Nxe7+ Kf8 $18) 22... Ra8 {[%emt 0:04:09] Gegen Rc8+ gerichtet.} 23. Bxb7 {[%emt 0:02:55]} Rb8 {[%emt 0:01:02]} 24. Nxe7+ {[%emt 0:00:46]} Kg7 {[%emt 0:10:27]} 25. Rc7 {[%emt 0:01:51]} Rxb2 {[%emt 0:00:00]} 26. Bd5 {[%emt 0:00:35]} Rd2 {[%emt 0:00:00]} 27. Nf5+ {[%emt 0:03:15]} Kg6 {[%emt 0:00:00]} 28. Ne3 {[%emt 0:00:12]} (28. Bxf7+ Kxf5 29. Bb3 Re8 $11) 28... f5 {[%emt 0:00:00]} 29. f4 {[%emt 0:02:28]} Rbb2 {[%emt 0:00:00]} 30. Rc6+ {[%emt 0:00:36] Gewichteter Fehlerwert: Weiß=0.00 (makellos) /Schwarz=0.59.  Verlustzug:     	---       	Schwarz=1     Fehler:       	---       	Schwarz=1     Ungenau:       	---       	Schwarz=1     OK:         	Weiß=13    	Schwarz=9     Bester:       	Weiß=2     	Schwarz=1     Brilliant:      	Weiß=1     	---} 1-0

[Event "NY Presidents Day IM-B 2024"]
[Site "New York"]
[Date "2024.02.19"]
[Round "7.1"]
[White "Xu, Grant"]
[Black "Sun, Ryan"]
[Result "0-1"]
[ECO "C22"]
[WhiteElo "2313"]
[BlackElo "2217"]
[Annotator "TA"]
[PlyCount "160"]
[EventDate "2024.02.14"]
[EventType "schev"]
[EventCountry "USA"]
[SourceTitle "playchess.com"]
[Source "ChessBase"]
[SourceQuality "1"]
[TimeControl "5400+30"]

{[%evp 15,160,0,0,0,0,-17,4,0,0,-5,0,0,10,10,8,9,10,0,4,0,2,0,7,4,34,33,34,33,37,27,35,0,6,0,0,0,0,0,0,-12,14,8,41,37,43,0,84,57,95,110,88,103,173,172,179,175,174,177,182,0,0,0,0,0,0,0,0,0,0,0,0,0,0,0,0,0,0,-7,-8,-8,0,0,0,0,0,0,0,0,0,0,0,-9,0,0,0,0,0,0,0,0,0,0,0,0,0,0,0,0,0,0,0,-9,-8,-8,0,0,0,0,0,0,0,0,0,0,-3,-8,-8,-11,-8,-8,-8,-12,-11,-20,-20,-20,-20,-25,-26,-38,-38,-29987,-29988,-29988,-29989,-29994,-29995]} 1. e4 {[%emt 0:00:12]} e5 {[%emt 0:01:16]} 2. d4 {[%emt 0:00:42]} exd4 {[%emt 0:01:01]} 3. Qxd4 {[%emt 0:00:04]} Nc6 {[%emt 0:00:27]} 4. Qe3 {[%emt 0:00:06]} Nf6 {[%emt 0:00:22]} 5. Bd2 {[%emt 0:00:07]} Be7 {[%emt 0:01:41]} 6. Nc3 {[%emt 0:00:06]} d5 {[%emt 0:03:56]} 7. exd5 {[%emt 0:00:16]} Nxd5 {[%emt 0:00:15]} 8. Nxd5 {[%emt 0:00:07]} Qxd5 {[%emt 0:00:09]} 9. Ne2 {[%emt 0:00:11]} Bf5 {[%emt 0:05:36]} 10. Nf4 {[%emt 0:01:27]} Qc5 {[%emt 0:06:31]} 11. Qxc5 {[%emt 0:05:36] Die Stellung ist ausgeglichen.} Bxc5 {[%emt 0:00:16][%cal Be7c5,Bc5d4,Bd4f6,Bf6e5][%mdl 32]} 12. Bd3 {[%emt 0:00:06]} Bxd3 {[%emt 0:00:41]} 13. Nxd3 {[%emt 0:00:07]} Bd4 {[%emt 0:00:49]} 14. c3 {[%emt 0:01:25]} Bf6 {[%emt 0:01:04]} 15. O-O-O {[%emt 0:00:52]} O-O-O {[%emt 0:00:10]} 16. Be3 {[%emt 0:00:55]} Rhe8 {[%emt 0:00:32]} 17. g4 {[%emt 0:00:52]} Ne5 {[%emt 0:03:34]} 18. Nxe5 {[%emt 0:00:24]} Bxe5 {[%emt 0:00:08]} 19. h4 {[%emt 0:01:04]} (19. Bxa7 $2 b6 20. h4 Bd6 $19) 19... h5 {[%emt 0:03:50]} 20. gxh5 {[%emt 0:03:49]} Rh8 {[%emt 0:02:34]} 21. h6 {[%emt 0:01:08]} (21. Bxa7 $2 Rxd1+ 22. Rxd1 b6 $19) 21... gxh6 {[%emt 0:00:54]} 22. h5 {[%emt 0:00:16]} (22. Bxa7 $2 {verliert.} b6 23. Rxd8+ Rxd8 $19) 22... a6 {[%emt 0:04:36]} 23. Rde1 {[%emt 0:03:08]} Bf6 {[%emt 0:01:10]} 24. Kc2 {[%emt 0:10:47]} Rd5 {[%emt 0:05:03]} 25. Rh3 {[%emt 0:01:17]} Bg5 {[%emt 0:02:57]} 26. Bd4 {[%emt 0:09:54]} Rhd8 {[%emt 0:02:07]} 27. b4 {[%emt 0:01:18]} b6 {[%emt 0:02:37][%cal Bb7b6,Bb6c5][%mdl 32]} 28. Rf3 {[%emt 0:01:13]} c5 {[%emt 0:01:42]} 29. bxc5 {[%emt 0:00:29]} bxc5 {[%emt 0:00:06]} 30. Bg7 {[%emt 0:03:11][%cal Oc2b3]} R8d7 {[%emt 0:05:19]} (30... f5 $11) 31. Re5 {[%emt 0:01:09]} Rd2+ {[%emt 0:14:30]} 32. Kb3 {[%emt 0:00:25][%cal Oe5g5] Und Rxg5! würde nun gewinnen.} c4+ {[%emt 0:00:14]} 33. Kxc4 {[%emt 0:00:29]} Be7 {[%emt 0:00:10] [#]} (33... Rxa2 $16 34. Bf6 Rc7+ 35. Kb3 Bxf6) 34. a3 $1 $18 {[%emt 0:11:06]} ({Und nicht} 34. Rxf7 Rc7+ 35. Kb3 Rb7+ 36. Kc4 Rc7+ 37. Kb3 Rb7+ 38. Kc4 Rc7+ $11) 34... Rc7+ {[%emt 0:13:47]} 35. Kb3 {[%emt 0:00:06]} Rb7+ {[%emt 0:00:06]} 36. Ka4 {[%emt 0:00:46]} Ra2 {[%emt 0:00:21][%csl Ge7][%cal Ra2a3] [#]} 37. Rxe7 $1 {[%emt 0:04:28][%mdl 512]} Rxe7 $11 {[%emt 0:00:06]} 38. Bxh6 $18 {[%emt 0:00:04][%mdl 4096] Endspiel. KRR-KRB} Rb2 {[%emt 0:01:54] ...Re4+ ist eine echte Drohung.} 39. Bg7 {[%emt 0:09:43]} Re4+ {[%emt 0:10:59]} 40. Bd4 {[%emt 0:00:15]} Rh4 {[%emt 0:00:17] Gegen Rh3 gerichtet.} 41. Rxf7 {[%emt 0:00:25]} Rxh5 {[%emt 0:00:05]} 42. f4 {[%emt 0:00:13]} Rbb5 {[%emt 0:00:41]} 43. Re7 {[%emt 0:06:05]} Ra5+ {[%emt 0:01:27]} 44. Kb3 {[%emt 0:00:12]} Rhb5+ {[%emt 0:00:09]} 45. Ka2 {[%emt 0:00:21]} Rh5 {[%emt 0:00:50]} 46. Be5 {[%emt 0:00:36]} Rb5 {[%emt 0:01:00]} 47. a4 {[%emt 0:00:25]} Rb6 {[%emt 0:01:52]} 48. Rc7+ {[%emt 0:02:12]} Kd8 {[%emt 0:00:01][%cal Oh5e5]} 49. Ra7 {[%emt 0:01:46] Und jetzt Bc7+ wäre schön.} Kc8 {[%emt 0:01:02]} 50. Bd4 {[%emt 0:00:19]} Rh2+ {[%emt 0:02:31]} 51. Ka3 {[%emt 0:00:09]} Rb1 {[%emt 0:00:15]} 52. Rxa6 {[%emt 0:07:24]} Rhb2 {[%emt 0:00:04]} 53. c4 {[%emt 0:00:12]} Rd2 {[%emt 0:00:06]} 54. Be5 {[%emt 0:00:29]} Rd3+ {[%emt 0:00:04]} 55. Ka2 {[%emt 0:00:04]} Rc1 {[%emt 0:00:03]} 56. Rc6+ {[%emt 0:04:03]} Kd7 {[%emt 0:00:16]} 57. Rc7+ {[%emt 0:00:26]} Kd8 {[%emt 0:00:24]} 58. Rc5 {[%emt 0:02:10]} Rf3 {[%emt 0:01:12]} 59. Kb2 {[%emt 0:00:39]} Rg1 {[%emt 0:00:17]} 60. Rd5+ {[%emt 0:00:14]} Kc8 {[%emt 0:00:06]} 61. Rd2 {[%emt 0:00:14]} Kb7 {[%emt 0:00:38]} 62. Rc2 {[%emt 0:01:51]} Kc6 {[%emt 0:00:57]} 63. c5 {[%emt 0:02:28]} Rg8 {[%emt 0:00:27]} 64. Bd6 {[%emt 0:00:30]} Ra8 {[%emt 0:00:10]} 65. Rc4 {[%emt 0:00:31]} Kd5 {[%emt 0:00:21]} 66. Rb4 {[%emt 0:00:18]} Ra7 {[%emt 0:00:53]} 67. Rb3 {[%emt 0:02:08]} Rf1 {[%emt 0:00:06]} 68. Rd3+ {[%emt 0:00:40]} Kc6 {[%emt 0:00:29]} 69. Rd4 {[%emt 0:00:44]} Rf3 {[%emt 0:00:09]} 70. Ka2 {[%emt 0:02:56]} Rh7 {[%emt 0:00:34]} 71. Rb4 {[%emt 0:00:16]} Rh2+ {[%emt 0:00:32][%mdl 1024] Schwarz hat Kompensation.} 72. Rb2 {[%emt 0:00:08]} Rhh3 {[%emt 0:00:14]} 73. Rb4 {[%emt 0:03:22]} Kd5 {[%emt 0:00:05]} 74. a5 {[%emt 0:01:26]} Ra3+ {[%emt 0:00:05]} 75. Kb2 {[%emt 0:00:04]} Rxa5 {[%emt 0:00:06]} 76. Rb3 {[%emt 0:00:49]} Rh2+ {[%emt 0:00:01]} 77. Kc3 {[%emt 0:00:18]} Ra4 {[%emt 0:00:18] ( -> ...Rc4+)} 78. Rb1 $2 {[%emt 0:00:44][%mdl 8192]} (78. Rb2 $15 Rc4+ 79. Kb3 Rh3+ 80. Ka2 Ra4+ 81. Kb1) 78... Rh3+ {[%emt 0:00:13] Schwarz setzt Matt.} 79. Kb2 {[%emt 0:01:22]} Rb4+ {[%emt 0:00:14]} 80. Ka2 {[%emt 0:00:18]} Rh2+ {[%emt 0:00:05] Nie zu früh aufgeben!   Gewichteter Fehlerwert: Weiß=0.09 (makellos) /Schwarz=0.09 (makellos) .  Verlustzug:     	Weiß=1     	---        Gewinn verpasst:   	Weiß=1     	---        Fehler:       	---       	Schwarz=2     Ungenau:       	Weiß=3     	Schwarz=4     OK:         	Weiß=29    	Schwarz=33    Bester:       	Weiß=6     	Schwarz=3     Stark:        	Weiß=1     	---} 0-1